lending/lending_fUSD_20240621
["ID","MTS","AMOUNT","RATE_DAILY","PERIOD"]
[330097786,1718990228060,-500.0,0.00022728,4]
[330097787,1718990228085,-500.0,0.00022728,4]
[330097788,1718990228111,-500.0,0.00022728,4]
[330097789,1718990228138,-500.0,0.00022728,4]
[330097790,1718990228164,-500.0,0.00022728,4]
[330097791,1718990228192,-500.0,0.00022728,4]
[330097792,1718990228220,-500.0,0.00022728,4]
[330097793,1718990228246,-500.0,0.00022728,4]
[330097794,1718990228272,-525.71,0.00022728,4]
[330097795,1718990228298,-500.0,0.00022728,4]
[330097796,1718990228323,-500.0,0.00022728,4]
[330097797,1718990228348,-500.0,0.00022728,4]
[330097798,1718990228373,-500.0,0.00022728,4]
[330097799,1718990228397,-1478.18,0.00022728,4]
[330097800,1718990228420,-500.0,0.00022728,4]
[330097801,1718990228445,-1109.1,0.00022728,4]
[330097802,1718990228470,-500.0,0.00022728,4]
[330097803,1718990228498,-500.0,0.00022728,4]
[330097804,1718990228524,-500.0,0.00022728,4]
[330097805,1718990228550,-878.35,0.00022728,4]
[330097806,1718990228576,-500.0,0.00022728,4]
[330097807,1718990228604,-1467.19,0.00022728,4]
[330097808,1718990228631,-500.0,0.00022728,4]
[330097809,1718990228658,-500.0,0.00022728,4]
[330097810,1718990228684,-500.0,0.00022728,4]
[330097811,1718990228711,-655.01,0.00022728,4]
[330097812,1718990228738,-500.0,0.00022728,4]
[330097813,1718990228765,-500.0,0.00022728,4]
[330097814,1718990228792,-500.0,0.00022728,4]
[330097815,1718990228819,-2889.89,0.00022728,4]
[330097816,1718990228844,-500.0,0.00022728,4]
[330097817,1718990228870,-500.0,0.00022728,4]
[330097818,1718990228899,-500.0,0.00022728,4]
[330097819,1718990230286,-500.0,0.00022728,4]
[330097820,1718990230321,-2343.28,0.00022728,4]
[330097821,1718990230350,-500.0,0.00022728,4]
[330097822,1718990230377,-500.0,0.00022728,4]
[330097823,1718990230404,-1117.24,0.00022728,4]
[330097824,1718990230429,-1118.35,0.00022728,4]
[330097825,1718990230454,-500.0,0.00022728,4]
[330097826,1718990230479,-500.0,0.00022728,4]
[330097827,1718990230508,-500.0,0.00022728,4]
[330097828,1718990230533,-634.94,0.00022728,4]
[330097829,1718990230559,-500.0,0.00022728,4]
[330097830,1718990230583,-500.0,0.00022728,4]
[330097831,1718990230608,-500.0,0.00022728,4]
[330097832,1718990230633,-500.0,0.00022728,4]
[330097833,1718990230662,-1606.1,0.00022728,4]
[330097834,1718990230689,-947.93,0.00022728,4]
[330097835,1718990230715,-500.0,0.00022728,4]
[330097836,1718990230739,-500.0,0.00022728,4]
[330097837,1718990230766,-500.0,0.00022728,4]
[330097838,1718990230791,-500.0,0.00022728,4]
[330097839,1718990230817,-500.0,0.00022728,4]
[330097840,1718990230845,-1399.02,0.00022728,4]
[330097841,1718990230871,-1171.77,0.00022728,4]
[330097842,1718990230897,-910.29,0.00022728,4]
[330097843,1718990230923,-2297.03,0.00022728,4]
[330097844,1718990230949,-579.98,0.00022728,4]
[330097845,1718990230980,-500.0,0.00022728,4]
[330097846,1718990231008,-707.22,0.00022728,4]
[330097847,1718990231035,-2945.36,0.00022728,4]
[330097848,1718990231062,-500.0,0.00022728,4]
[330097849,1718990231090,-500.0,0.00022728,4]
[330097850,1718990231117,-1537.71,0.00022728,4]
[330097851,1718990231144,-800.03,0.00022728,4]
[330097852,1718990231170,-668.3,0.00022728,4]
[330097853,1718990231197,-1217.47,0.00022728,4]
[330097854,1718990231224,-735.45,0.00022728,4]
[330097855,1718990231252,-609.35,0.00022728,4]
[330097856,1718990231279,-4436.8,0.00022728,4]
[330097857,1718990231305,-721.45,0.00022728,4]
[330097858,1718990231330,-910.08,0.00022728,4]
[330097859,1718990231356,-539.26,0.00022728,4]
[330097860,1718990231382,-500.0,0.00022728,4]
[330097861,1718990231409,-26868.69,0.00022728,4]
[330097862,1718990231435,-500.0,0.00022728,4]
[330097863,1718990231460,-700.96,0.00022728,4]
[330097864,1718990231487,-626.48517874,0.00022728,4]
[330097865,1718990231514,-991.48,0.00022728,4]
[330097866,1718990231766,-500.0,0.00022728,4]
[330097867,1718990231792,-639.07,0.00022728,4]
[330097868,1718990231819,-500.0,0.00022728,4]
[330097869,1718990231844,-500.0,0.00022728,4]
[330097870,1718990231871,-500.0,0.00022728,4]
[330097871,1718990231897,-679.24,0.00022728,4]
[330097872,1718990231924,-1944.21,0.00022728,4]
[330097873,1718990231950,-1000.0,0.00022728,4]
[330097874,1718990231975,-640.29,0.00022728,4]
[330097875,1718990232003,-500.0,0.00022728,4]
[330097876,1718990232029,-688.59,0.00022728,4]
[330097877,1718990232056,-579.79005184,0.00022728,4]
[330097878,1718990232084,-500.0,0.00022728,4]
[330097879,1718990232111,-500.0,0.00022728,4]
[330097880,1718990232139,-500.0,0.00022728,4]
[330097881,1718990232167,-500.0,0.00022728,4]
[330097882,1718990232194,-500.0,0.00022728,4]
[330097883,1718990232222,-500.0,0.00022728,4]
[330097884,1718990232251,-500.0,0.00022728,4]
[330097885,1718990232277,-710.57,0.00022728,4]
[330097886,1718990232304,-500.0,0.00022728,4]
[330097887,1718990232330,-531.96,0.00022728,4]
[330097888,1718990232355,-686.32,0.00022728,4]
[330097889,1718990232382,-661.54,0.00022728,4]
[330097890,1718990232409,-500.0,0.00022728,4]
[330097891,1718990232437,-500.0,0.00022728,4]
[330097892,1718990232464,-994.93,0.00022728,4]
[330097893,1718990232491,-500.0,0.00022728,4]
[330097894,1718990232519,-1307.11,0.00022728,4]
[330097895,1718990232545,-694.0,0.00022728,4]
[330097896,1718990232572,-500.0,0.00022728,4]
[330097897,1718990232599,-694.8,0.00022728,4]
[330097898,1718990232627,-500.0,0.00022728,4]
[330097899,1718990232655,-964.82,0.00022728,4]
[330097900,1718990232681,-500.0,0.00022728,4]
[330097901,1718990232708,-1428.73,0.00022728,4]
[330097902,1718990232736,-1655.79,0.00022728,4]
[330097903,1718990232765,-1540.92,0.00022728,4]
[330097904,1718990232793,-500.0,0.00022728,4]
[330097905,1718990232822,-1603.97,0.00022728,4]
[330097906,1718990232849,-500.0,0.00022728,4]
[330097907,1718990232879,-1222.36,0.00022728,4]
[330097908,1718990232909,-504.83552531,0.00022728,4]
[330097909,1718990232938,-362.79439818,0.00022728,4]
[330097910,1718990232966,-1199.19,0.00022728,4]
[330097911,1718990232993,-3764.05,0.00022728,4]
[330097912,1718990233023,-500.0,0.00022728,4]
[330097913,1718990233055,-500.0,0.00022728,4]
[330097914,1718990233083,-818.18,0.00022728,4]
[330097915,1718990233111,-500.0,0.00022728,4]
[330097916,1718990233139,-1495.2,0.00022728,4]
[330097917,1718990233168,-530.93,0.00022728,4]
[330097918,1718990233197,-500.0,0.00022728,4]
[330097919,1718990233229,-500.0,0.00022728,4]
[330097920,1718990233259,-928.11,0.00022728,4]
[330097921,1718990233287,-1677.55,0.00022728,4]
[330097922,1718990233316,-804.03,0.00022728,4]
[330097923,1718990233344,-500.0,0.00022728,4]
[330097924,1718990233374,-500.0,0.00022728,4]
[330097925,1718990233403,-708.0,0.00022728,4]
[330097926,1718990233430,-1917.92,0.00022728,4]
[330097927,1718990233458,-500.0,0.00022728,4]
[330097928,1718990233489,-500.0,0.00022728,4]
[330097929,1718990233520,-908.98,0.00022728,4]
[330097930,1718990233548,-2715.91,0.00022728,4]
[330097931,1718990233574,-718.56,0.00022728,4]
[330097932,1718990233599,-500.0,0.00022728,4]
[330097933,1718990233624,-500.0,0.00022728,4]
[330097934,1718990233650,-637.26,0.00022728,4]
[330097935,1718990233677,-772.88,0.00022728,4]
[330097936,1718990233705,-604.61,0.00022728,4]
[330097937,1718990233733,-250.0,0.00022728,4]
[330097938,1718990233801,-4735.78,0.00022728,4]
[330097939,1718990233829,-500.0,0.00022728,4]
[330097940,1718990233855,-1743.39,0.00022738,4]
[330097941,1718990233881,-286.59189512,0.00022738,4]
[330097942,1718990233906,-2232.82,0.00022738,4]
[330097943,1718990233932,-595.1,0.00022738,4]
[330097944,1718990233958,-2218.19,0.00022738,4]
[330097945,1718990233984,-1884.7,0.00022738,4]
[330097946,1718990234012,-1474.02,0.00022738,4]
[330097947,1718990234038,-7912.53,0.00022738,4]
[330097948,1718990234065,-1769.35,0.00022738,4]
[330097949,1718990234090,-447.30390222,0.00022738,4]
[330097950,1718990234116,-2613.48,0.00022738,4]
[330097951,1718990234142,-503.57,0.00022738,4]
[330097952,1718990234168,-500.0,0.00022738,4]
[330097953,1718990234194,-2689.75,0.00022738,4]
[330097954,1718990234224,-1323.27,0.00022738,4]
[330097955,1718990234251,-3901.69,0.00022738,4]
[330097956,1718990234278,-906.33,0.00022738,4]
[330097957,1718990234304,-500.0,0.00022738,4]
[330097958,1718990234331,-2621.17,0.00022738,4]
[330097959,1718990234355,-1145.32061862,0.00022738,4]
[330097960,1718990234381,-2675.96,0.00022738,4]
[330097961,1718990234406,-657.15,0.00022738,4]
[330097962,1718990234432,-1897.24,0.00022738,4]
[330097963,1718990234458,-1285.76,0.00022738,4]
[330097964,1718990234485,-500.0,0.00022738,4]
[330097965,1718990234511,-500.0,0.00022738,4]
[330097966,1718990234539,-39542.29,0.00022738,4]
[330097967,1718990234566,-1219.33,0.00022738,4]
[330097968,1718990234592,-500.0,0.00022738,4]
[330097969,1718990234620,-500.0,0.00022738,4]
[330097970,1718990234645,-6141.08,0.00022738,4]
[330097971,1718990234672,-5538.29,0.00022738,4]
[330097972,1718990234698,-500.0,0.00022738,4]
[330097973,1718990234723,-500.0,0.00022738,4]
[330097974,1718990234751,-5568.61,0.00022738,4]
[330097975,1718990234776,-1777.62,0.00022738,4]
[330097976,1718990234806,-7780.39,0.00022738,4]
[330097977,1718990234833,-500.0,0.00022739,4]
[330097978,1718990234858,-500.0,0.00022739,4]
[330097979,1718990234885,-1005.8,0.00022739,4]
[330097980,1718990234912,-772.45,0.00022739,4]
[330097981,1718990234938,-500.0,0.00022739,4]
[330097982,1718990234963,-500.0,0.00022739,4]
[330097983,1718990234989,-1487.67,0.00022739,4]
[330097984,1718990235017,-500.0,0.00022739,4]
[330097985,1718990235042,-500.0,0.00022739,4]
[330097986,1718990235067,-500.0,0.00022739,4]
[330097987,1718990235092,-500.0,0.00022739,4]
[330097988,1718990235117,-500.0,0.00022739,4]
[330097989,1718990235141,-500.0,0.00022739,4]
[330097990,1718990235166,-1302.06,0.00022739,4]
[330097991,1718990235192,-500.0,0.00022739,4]
[330097992,1718990235220,-500.0,0.00022739,4]
[330097993,1718990235247,-500.0,0.00022739,4]
[330097994,1718990235273,-500.0,0.00022739,4]
[330097995,1718990235299,-1105.45,0.00022739,4]
[330097996,1718990235325,-500.0,0.00022739,4]
[330097997,1718990235352,-500.0,0.00022739,2]
[330097998,1718990235377,-500.0,0.00022739,4]
[330097999,1718990235402,-500.0,0.00022739,4]
[330098000,1718990235426,-592.91729563,0.00022739,4]
[330098001,1718990235450,-500.0,0.00022739,4]
[330098002,1718990235475,-500.0,0.00022739,4]
[330098003,1718990235501,-500.0,0.00022739,4]
[330098004,1718990235526,-500.0,0.00022739,4]
[330098005,1718990235553,-500.0,0.00022739,4]
[330098006,1718990235578,-500.0,0.00022739,4]
[330098007,1718990235606,-500.0,0.00022739,4]
[330098008,1718990235632,-500.0,0.00022739,4]
[330098009,1718990235658,-500.0,0.00022739,4]
[330098010,1718990235686,-500.0,0.00022739,4]
[330098011,1718990235712,-500.0,0.00022739,4]
[330098012,1718990235738,-500.0,0.00022739,4]
[330098013,1718990235766,-500.0,0.00022739,4]
[330098014,1718990235793,-500.0,0.00022739,4]
[330098015,1718990235820,-1605.24,0.00022739,4]
[330098016,1718990235846,-500.0,0.00022739,4]
[330098017,1718990235872,-569.56,0.00022739,4]
[330098018,1718990235899,-812.48,0.00022739,4]
[330098019,1718990235925,-500.0,0.00022739,4]
[330098020,1718990235950,-500.0,0.00022739,4]
[330098021,1718990235975,-500.0,0.00022739,4]
[330098022,1718990236004,-500.0,0.00022739,4]
[330098023,1718990236030,-1061.28,0.00022739,4]
[330098024,1718990236059,-500.0,0.00022739,4]
[330098025,1718990236085,-758.73,0.00022739,4]
[330098026,1718990236111,-542.96,0.00022739,4]
[330098027,1718990236137,-500.0,0.00022739,4]
[330098028,1718990236163,-500.0,0.00022739,4]
[330098029,1718990236189,-500.0,0.00022739,4]
[330098030,1718990236214,-500.0,0.00022739,4]
[330098031,1718990236244,-500.0,0.00022739,4]
[330098032,1718990236275,-965.65,0.00022739,4]
[330098033,1718990236303,-5279.74,0.00022739,4]
[330098034,1718990236327,-1112.63,0.00022739,4]
[330098035,1718990236353,-500.0,0.00022739,4]
[330098036,1718990236382,-1038.94,0.00022739,4]
[330098037,1718990236409,-500.0,0.00022739,4]
[330098038,1718990236436,-1022.28,0.00022739,4]
[330098039,1718990236461,-500.0,0.00022739,4]
[330098040,1718990236488,-594.05,0.00022739,4]
[330098041,1718990236518,-500.0,0.00022739,4]
[330098042,1718990236635,-1150.63,0.00022739,4]
[330098043,1718990236676,-541.10835268,0.00022739,4]
[330098044,1718990236703,-500.0,0.00022739,4]
[330098045,1718990236729,-753.1,0.00022739,4]
[330098046,1718990236758,-923.38,0.00022739,4]
[330098047,1718990236784,-500.0,0.00022739,4]
[330098048,1718990236810,-871.28,0.00022739,4]
[330098049,1718990236835,-443.68887671,0.00022739,4]
[330098050,1718990236861,-500.0,0.00022739,4]
[330098051,1718990236887,-422.88875414,0.00022739,4]
[330098052,1718990236912,-500.0,0.00022739,4]
[330098053,1718990236937,-1260.42,0.00022739,4]
[330098054,1718990236962,-697.22,0.00022739,4]
[330098055,1718990236987,-534.86,0.00022739,4]
[330098056,1718990237016,-714.72,0.00022739,4]
[330098057,1718990237043,-9716.81,0.00022739,4]
[330098058,1718990237069,-500.0,0.00022739,4]
[330098059,1718990237095,-2819.08,0.00022739,4]
[330098060,1718990237121,-500.0,0.00022739,4]
[330098061,1718990237147,-502.33,0.00022739,4]
[330098062,1718990237172,-773.32,0.00022739,4]
[330098063,1718990237197,-1041.21,0.00022739,4]
[330098064,1718990237225,-500.0,0.00022739,4]
[330098065,1718990237255,-1272.01,0.00022739,4]
[330098066,1718990237280,-715.25,0.00022739,4]
[330098067,1718990237309,-721.97,0.00022739,4]
[330098068,1718990237335,-500.0,0.00022739,4]
[330098069,1718990237363,-210.87951651,0.00022739,4]
[330098070,1718990237389,-629.62,0.00022739,4]
[330098071,1718990237415,-500.0,0.00022739,4]
[330098072,1718990237441,-500.0,0.00022739,4]
[330098073,1718990237467,-500.0,0.00022739,4]
[330098074,1718990237496,-1205.31,0.00022739,4]
[330098075,1718990237523,-1093.35,0.00022739,4]
[330098076,1718990237551,-234.55127171,0.00022739,4]
[330098077,1718990237581,-549.09,0.00022739,4]
[330098078,1718990237608,-500.0,0.00022739,4]
[330098079,1718990237634,-629.80205907,0.00022739,4]
[330098080,1718990237660,-500.0,0.00022739,4]
[330098081,1718990237687,-1058.1,0.00022739,4]
[330098082,1718990237713,-563.92,0.00022739,4]
[330098083,1718990237743,-733.12,0.00022739,4]
[330098084,1718990237772,-511.29,0.00022739,4]
[330098085,1718990237798,-849.22,0.00022739,4]
[330098086,1718990237824,-500.0,0.00022739,4]
[330098087,1718990237851,-939.71,0.00022739,4]
[330098088,1718990237877,-500.0,0.00022739,4]
[330098089,1718990237903,-995.64,0.00022739,4]
[330098090,1718990237929,-269.20894973,0.00022899,2]
[330098091,1718990237955,-339.36468135,0.00022899,2]
[330098092,1718990237981,-158.21632429,0.00022899,2]
[330098093,1718990238008,-1069.4164457,0.00022899,2]
[330098094,1718990238034,-155.0,0.00022899,2]
[330098095,1718990238059,-326.69444584,0.00022899,2]
[330098096,1718990238084,-1627.6013862,0.00022899,2]
[330098097,1718990238114,-3104.08951169,0.00022899,2]
[330098098,1718990238141,-5000.0,0.00022899,2]
[330098099,1718990238167,-1492.42643164,0.00022899,2]
[330098100,1718990238193,-186.66413024,0.00022899,2]
[330098101,1718990238220,-185.2371628,0.00022899,2]
[330098102,1718990238248,-10000.0,0.00022899,2]
[330098103,1718990238279,-156.43955599,0.00022899,2]
[330098104,1718990238304,-660.11977562,0.00022899,2]
[330098105,1718990238331,-3491.8,0.00022989,4]
[330098106,1718990238356,-1118.14,0.00022989,4]
[330098107,1718990238383,-1133.53475068,0.00022989,2]
[330098108,1718990238411,-2155.83,0.00022989,4]
[330098109,1718990238437,-345.95893679,0.00022989,2]
[330098110,1718990238464,-917.58,0.00022989,4]
[330098111,1718990238491,-2952.26,0.00022989,4]
[330098112,1718990238517,-202.40067256,0.00022989,2]
[330098113,1718990238542,-1243.83,0.00022989,4]
[330098114,1718990238570,-2397.68,0.00022989,4]
[330098115,1718990238596,-155.26250993,0.00022989,2]
[330098116,1718990238622,-918.80279174,0.00022989,2]
[330098117,1718990238653,-2171.32,0.00022989,4]
[330098118,1718990238680,-2562.05,0.00022989,4]
[330098119,1718990238706,-1877.31,0.00023001,4]
[330098120,1718990238737,-978.25,0.00023001,4]
[330098121,1718990238766,-500.0,0.00023001,4]
[330098122,1718990238793,-811.91,0.00023001,4]
[330098123,1718990238821,-948.77,0.00023001,4]
[330098124,1718990238848,-500.0,0.00023001,4]
[330098125,1718990238875,-3399.06,0.00023001,4]
[330098126,1718990238900,-571.41,0.00023001,4]
[330098127,1718990238928,-500.0,0.00023001,4]
[330098128,1718990238953,-500.0,0.00023001,4]
[330098129,1718990238981,-638.78,0.00023001,4]
[330098130,1718990239012,-2188.55,0.00023001,4]
[330098131,1718990239037,-500.0,0.00023001,4]
[330098132,1718990239366,-500.0,0.00023001,4]
[330098133,1718990239396,-500.0,0.00023001,4]
[330098134,1718990239424,-521.3,0.00023001,4]
[330098135,1718990239450,-643.33,0.00023001,4]
[330098136,1718990239476,-4013.7,0.00023001,4]
[330098137,1718990239504,-3341.87,0.00023001,4]
[330098138,1718990239531,-973.65,0.00023001,4]
[330098139,1718990239558,-1298.27,0.00023001,4]
[330098140,1718990239586,-1160.67,0.00023001,4]
[330098141,1718990239612,-500.0,0.00023001,4]
[330098142,1718990239640,-2431.29,0.00023001,4]
[330098143,1718990239666,-2147.09,0.00023001,4]
[330098144,1718990239693,-955.91,0.00023001,4]
[330098145,1718990239719,-500.0,0.00023001,4]
[330098146,1718990239746,-1988.28,0.00023001,4]
[330098147,1718990239783,-3861.7,0.00023001,4]
[330098148,1718990239813,-1545.69,0.00023001,4]
[330098149,1718990239842,-500.0,0.00023001,4]
[330098150,1718990239870,-885.76,0.00023001,4]
[330098151,1718990239899,-846.41,0.00023001,4]
[330098152,1718990239929,-1105.64,0.00023001,4]
[330098153,1718990239955,-500.0,0.00023001,4]
[330098154,1718990239982,-1441.35,0.00023001,4]
[330098155,1718990240009,-500.0,0.00023001,4]
[330098156,1718990240036,-500.0,0.00023001,4]
[330098157,1718990240063,-5127.76,0.00023001,4]
[330098158,1718990240092,-500.0,0.00023001,4]
[330098159,1718990240120,-1115.8,0.00023001,4]
[330098160,1718990240147,-522.66,0.00023001,4]
[330098161,1718990240173,-548.81,0.00023001,4]
[330098162,1718990240201,-968.43,0.00023001,4]
[330098163,1718990240231,-2349.44,0.00023001,4]
[330098164,1718990240259,-2270.24,0.00023001,4]
[330098165,1718990240286,-809.02,0.00023001,4]
[330098166,1718990240315,-1181.82,0.00023001,4]
[330098167,1718990240341,-1381.07,0.00023001,4]
[330098168,1718990240367,-500.0,0.00023001,4]
[330098169,1718990240394,-3165.23,0.00023001,4]
[330098170,1718990240423,-635.71,0.00023001,4]
[330098171,1718990240450,-500.0,0.00023001,4]
[330098172,1718990240476,-500.0,0.00023001,4]
[330098173,1718990240507,-607.62,0.00023001,4]
[330098174,1718990240533,-847.05,0.00023001,4]
[330098175,1718990240563,-614.81,0.00023001,4]
[330098176,1718990240590,-898.14,0.00023001,4]
[330098177,1718990240617,-500.0,0.00023001,4]
[330098178,1718990240646,-625.46,0.00023001,4]
[330098179,1718990240676,-5713.98,0.00023001,4]
[330098180,1718990240703,-1030.59,0.00023001,4]
[330098181,1718990240731,-4502.87,0.00023001,4]
[330098182,1718990240759,-704.08,0.00023001,4]
[330098183,1718990240785,-500.0,0.00023001,4]
[330098184,1718990240811,-2414.13,0.00023001,4]
[330098185,1718990240837,-539.94,0.00023001,4]
[330098186,1718990240864,-500.0,0.00023001,4]
[330098187,1718990240890,-1707.02,0.00023001,4]
[330098188,1718990240919,-701.81,0.00023001,4]
[330098189,1718990240946,-500.0,0.00023001,4]
[330098190,1718990240972,-1013.17,0.00023001,4]
[330098191,1718990240999,-500.0,0.00023001,4]
[330098192,1718990241027,-613.35,0.00023001,4]
[330098193,1718990241054,-4235.6,0.00023001,4]
[330098194,1718990241079,-500.0,0.00023002,4]
[330098195,1718990241106,-500.0,0.00023002,4]
[330098196,1718990241132,-2065.38,0.00023002,4]
[330098197,1718990241157,-861.17,0.00023002,4]
[330098198,1718990241183,-500.0,0.00023002,4]
[330098199,1718990241210,-500.0,0.00023002,4]
[330098200,1718990241242,-500.0,0.00023002,4]
[330098201,1718990241270,-1399.75,0.00023002,4]
[330098202,1718990241297,-412.47,0.00023002,4]
[330098203,1718990241325,-500.0,0.00023002,4]
[330098204,1718990241430,-500.0,0.00023002,4]
[330098205,1718990241455,-500.0,0.00023002,4]
[330098206,1718990241480,-500.0,0.00023002,4]
[330098207,1718990241505,-500.0,0.00023002,4]
[330098208,1718990241530,-500.0,0.00023002,4]
[330098209,1718990241556,-500.0,0.00023002,4]
[330098210,1718990241596,-525.71,0.00023002,4]
[330098211,1718990241627,-500.0,0.00023002,4]
[330098212,1718990241653,-500.0,0.00023002,4]
[330098213,1718990241680,-500.0,0.00023002,4]
[330098214,1718990241705,-500.0,0.00023002,4]
[330098215,1718990241731,-1478.18,0.00023002,4]
[330098216,1718990241756,-500.0,0.00023002,4]
[330098217,1718990241785,-1109.1,0.00023002,4]
[330098218,1718990241812,-500.0,0.00023002,4]
[330098219,1718990241838,-500.0,0.00023002,4]
[330098220,1718990241865,-500.0,0.00023002,4]
[330098221,1718990241891,-878.35,0.00023002,4]
[330098222,1718990241917,-500.0,0.00023002,4]
[330098223,1718990241943,-1467.19,0.00023002,4]
[330098224,1718990241969,-500.0,0.00023002,4]
[330098225,1718990241997,-500.0,0.00023002,4]
[330098226,1718990242029,-500.0,0.00023002,4]
[330098227,1718990242058,-655.01,0.00023002,4]
[330098228,1718990242084,-500.0,0.00023002,4]
[330098229,1718990242110,-500.0,0.00023002,4]
[330098230,1718990242136,-412.11333348,0.00023002,4]
[330098231,1718990242163,-2889.89,0.00023002,4]
[330098232,1718990242192,-500.0,0.00023002,4]
[330098233,1718990242224,-500.0,0.00023002,4]
[330098234,1718990242256,-500.0,0.00023002,4]
[330098235,1718990242285,-217.0522574,0.00023002,4]
[330098236,1718990242315,-2343.28,0.00023002,4]
[330098237,1718990242342,-500.0,0.00023002,4]
[330098238,1718990242373,-500.0,0.00023002,4]
[330098239,1718990242401,-1117.24,0.00023002,4]
[330098240,1718990242428,-1118.35,0.00023002,4]
[330098241,1718990242455,-500.0,0.00023002,4]
[330098242,1718990242482,-500.0,0.00023002,4]
[330098243,1718990242515,-500.0,0.00023002,4]
[330098244,1718990242541,-634.94,0.00023002,4]
[330098245,1718990242567,-500.0,0.00023002,4]
[330098246,1718990242593,-500.0,0.00023002,4]
[330098247,1718990242620,-500.0,0.00023002,4]
[330098248,1718990242648,-1606.1,0.00023002,4]
[330098249,1718990242676,-947.93,0.00023002,4]
[330098250,1718990242703,-500.0,0.00023002,4]
[330098251,1718990242730,-530.5968474,0.00023002,4]
[330098252,1718990242758,-500.0,0.00023002,4]
[330098253,1718990242784,-500.0,0.00023002,4]
[330098254,1718990242810,-1399.02,0.00023002,4]
[330098255,1718990242837,-1171.77,0.00023002,4]
[330098256,1718990242864,-910.29,0.00023002,4]
[330098257,1718990242892,-2297.03,0.00023002,4]
[330098258,1718990242923,-579.98,0.00023002,4]
[330098259,1718990242950,-500.0,0.00023002,4]
[330098260,1718990242976,-707.22,0.00023002,4]
[330098261,1718990243005,-2945.36,0.00023002,4]
[330098262,1718990243033,-500.0,0.00023002,4]
[330098263,1718990243059,-500.0,0.00023002,4]
[330098264,1718990243087,-1537.71,0.00023002,4]
[330098265,1718990243115,-800.03,0.00023002,4]
[330098266,1718990243142,-668.3,0.00023002,4]
[330098267,1718990243169,-735.45,0.00023002,4]
[330098268,1718990243198,-1217.47,0.00023002,4]
[330098269,1718990243227,-609.35,0.00023002,4]
[330098270,1718990243255,-721.45,0.00023002,4]
[330098271,1718990243282,-4436.8,0.00023002,4]
[330098272,1718990243312,-910.08,0.00023002,4]
[330098273,1718990243339,-539.26,0.00023002,4]
[330098274,1718990243366,-500.0,0.00023002,4]
[330098275,1718990243393,-26868.69,0.00023002,4]
[330098276,1718990243420,-500.0,0.00023002,4]
[330098277,1718990243447,-700.96,0.00023002,4]
[330098278,1718990243474,-991.48,0.00023002,4]
[330098279,1718990243501,-500.0,0.00023002,4]
[330098280,1718990243529,-639.07,0.00023002,4]
[330098281,1718990243557,-500.0,0.00023002,4]
[330098282,1718990243586,-500.0,0.00023002,4]
[330098283,1718990243612,-679.24,0.00023002,4]
[330098284,1718990243671,-1944.21,0.00023002,4]
[330098285,1718990243730,-640.29,0.00023002,4]